bitfinex-derivatives/quotes_ETHF0:USTF0_20240917
["timestamp","ask_amount","ask_price","bid_price","bid_amount"]
[1726565642792,4.03684,2309.9,2309.5,0.4197]
[1726565644294,3.2078,2309.8,2309.5,0.4197]
[1726565645483,3.64076,2309.8,2309.5,0.4197]
[1726565648518,0.43298,2309.7,2309.5,0.4197]
[1726565648702,1.08244,2309.7,2309.2,2.7]
[1726565649002,0.43307,2309.2,2308.9,2.7]
[1726565649188,0.43307,2309.2,2308.7,3.3088]
[1726565649189,4.71304,2309.1,2308.7,2.7]
[1726565649394,3.64096,2308.8,2308.5,4.3574]
[1726565649694,3.64096,2308.8,2308.2,0.43324]
[1726565649695,0.43318,2308.6,2308.2,0.43324]
[1726565649895,0.43318,2308.6,2308.1,2.801]
[1726565649896,3.2078,2308.5,2308.1,3.1218]
[1726565650307,3.2078,2308.5,2308.3,0.43323]
[1726565650691,3.2078,2308.5,2308.4,0.43322]
[1726565651100,3.2078,2308.5,2308.4,4.76522]
[1726565652994,3.2078,2308.5,2308.1,3.1218]
[1726565653208,3.2078,2308.5,2308.3,3.13323]
[1726565653501,3.2078,2308.5,2308.1,3.1218]
[1726565653707,0.43323,2308.4,2308.1,3.55507]
[1726565654202,4.05091,2308.5,2308.1,3.55507]
[1726565654402,4.05091,2308.5,2308.2,0.43325]
[1726565654703,0.43322,2308.4,2308.1,3.55506]
[1726565654904,3.6177,2308.5,2307.9,3.1129]
[1726565655110,0.43324,2308.3,2308.0,0.43328]
[1726565655807,0.43324,2308.3,2308.1,0.43327]
[1726565657009,0.43323,2308.4,2308.1,0.43327]
[1726565658218,0.43324,2308.3,2308.1,0.43327]
[1726565659001,0.43324,2308.3,2308.2,0.43325]
[1726565659912,0.43323,2308.4,2308.2,0.43325]
[1726565660511,0.43324,2308.3,2308.2,0.43325]
[1726565663209,3.2078,2308.4,2308.3,0.43324]
[1726565663210,0.43322,2308.4,2308.3,0.43324]
[1726565663908,0.43324,2308.3,2308.2,0.43324]
[1726565664911,3.64103,2308.4,2308.3,0.43324]
[1726565665113,0.43325,2308.3,2308.2,0.43324]
[1726565667707,1.49291,2308.5,2308.3,0.43322]
[1726565668021,0.84311,2308.5,2308.4,0.43322]
[1726565674412,0.43322,2308.4,2308.3,0.43323]
[1726565675328,1.25471,2308.5,2308.4,0.43322]
[1726565676514,0.43323,2308.4,2308.3,0.43322]
[1726565677522,1.25471,2308.5,2308.4,0.43322]
[1726565678210,0.84311,2308.5,2308.4,0.43322]
[1726565680825,0.43322,2308.4,2308.3,0.43322]
[1726565682327,0.43324,2308.4,2308.3,0.43322]
[1726565687021,0.84311,2308.5,2308.4,0.43322]
[1726565690526,4.05091,2308.5,2308.4,0.43322]
[1726565692535,0.43325,2308.3,2308.2,0.43324]
[1726565692927,0.43323,2308.4,2308.3,0.43322]
[1726565693528,0.43325,2308.3,2308.2,0.43324]
[1726565693734,0.83565,2308.3,2308.2,0.43324]
[1726565694331,0.83565,2308.3,2308.2,3.26753563]
[1726565694532,0.83565,2308.3,2308.2,1.56433923]
[1726565695336,0.83565,2308.3,2308.2,3.83415912]
[1726565698032,0.83565,2308.3,2308.2,3.83436137]
[1726565701341,0.43325,2308.3,2308.2,3.83436137]
[1726565701540,0.43325,2308.3,2308.2,3.83478657]
[1726565702444,0.43325,2308.3,2308.2,3.84396787]
[1726565702640,3.64102,2308.4,2308.3,0.43324]
[1726565702841,3.64102,2308.4,2308.3,4.64231026]
[1726565704943,4.89102,2308.4,2308.3,3.84391026]
[1726565705342,5.28322,2308.4,2308.3,3.84391026]
[1726565706238,5.28322,2308.4,2308.3,2.13901254]
[1726565706438,5.28322,2308.4,2308.3,3.85130334]
[1726565708746,2.07542,2308.4,2308.3,3.85130334]
[1726565708933,5.28322,2308.4,2308.3,3.85130334]
[1726565710552,2.07542,2308.4,2308.3,3.85130334]
[1726565710846,5.28322,2308.4,2308.3,3.85130334]
[1726565713050,4.89102,2308.4,2308.3,3.85130334]
[1726565713747,3.64102,2308.4,2308.3,3.85130334]
[1726565715256,0.101,2308.7,2308.6,0.43318]
[1726565715544,0.43311,2309.0,2308.9,0.43312]
[1726565715754,1.242,2309.1,2309.0,0.4331]
[1726565715953,4.06,2309.1,2309.0,1.57051605]
[1726565716156,0.4191,2309.1,2309.0,0.8203]
[1726565716451,1.86904,2309.3,2309.1,0.43308]
[1726565716452,2.0364,2309.3,2309.1,0.43308]
[1726565716749,0.43308,2309.2,2309.1,1.13741605]
[1726565716942,0.43308,2309.2,2309.0,2.52641407]
[1726565716943,0.43308,2309.2,2309.0,1.95770605]
[1726565717142,0.43308,2309.2,2309.1,0.43309]
[1726565717545,0.43308,2309.2,2309.0,1.95770605]
[1726565717766,2.46946,2309.3,2309.1,0.43309]
[1726565718347,0.43307,2309.2,2309.0,0.82029]
[1726565719654,0.85213,2309.4,2309.2,0.43305]
[1726565719846,1.25,2309.3,2309.0,3.20770605]
[1726565720045,1.68307,2309.2,2309.0,1.95770605]
[1726565720246,1.25,2309.2,2309.0,1.95770605]
[1726565720554,1.25,2309.2,2309.1,0.43309]
[1726565720751,1.25,2309.3,2309.2,0.43307]
[1726565720945,0.4191,2309.4,2309.2,0.43307]
[1726565721141,1.18346,2309.7,2309.2,0.43307]
[1726565721142,0.101,2309.7,2309.3,4.4578]
[1726565721342,0.8175,2309.8,2309.7,0.43297]
[1726565721550,0.43292,2310.0,2309.7,3.2078]
[1726565721850,4.11853825,2310.1,2310.0,0.43292]
[1726565721851,3.26713825,2310.1,2310.0,0.43292]
[1726565722046,3.2078,2310.3,2310.0,1.6829]
[1726565722243,3.2078,2310.3,2310.1,0.4329]
[1726565722244,4.89067,2310.3,2310.1,0.4329]
[1726565722446,4.89067,2310.3,2310.0,0.4329]
[1726565722447,0.43289,2310.2,2310.0,0.4329]
[1726565722655,1.68289,2310.2,2310.0,0.4329]
[1726565722956,1.25,2310.1,2310.0,0.4329]
[1726565723353,0.43293,2310.0,2309.5,1.25]
[1726565723551,0.43293,2310.0,2309.8,0.43295]
[1726565723552,4.8588,2310.0,2309.8,0.43295]
[1726565724053,4.04172,2310.0,2309.8,0.43295]
[1726565724349,4.04172,2310.0,2309.9,0.43294]
[1726565724350,3.6088,2310.0,2309.9,0.43294]
[1726565724560,3.6088,2310.0,2309.8,0.43294]
[1726565725048,0.43295,2309.9,2309.7,0.43297]
[1726565725249,0.43297,2309.8,2309.6,0.4205]
[1726565725452,0.43297,2309.8,2309.6,0.85348]
[1726565726852,0.43297,2309.8,2309.6,4.06128]
[1726565727547,0.43297,2309.8,2309.6,0.85348]
[1726565730660,0.43297,2309.8,2309.7,0.43297]
[1726565731452,0.43297,2309.8,2309.6,0.85348]
[1726565731652,0.43297,2309.8,2309.7,0.43297]
[1726565731653,0.43296,2309.8,2309.7,0.43297]
[1726565731858,0.43296,2309.8,2309.6,0.85348]
[1726565732462,0.43296,2309.8,2309.7,0.43297]
[1726565734369,0.43297,2309.7,2309.6,0.85348]
[1726565735556,4.69277,2309.9,2309.7,0.43296]
[1726565735557,0.43296,2309.8,2309.7,0.43296]
[1726565740571,0.43296,2309.8,2309.7,0.84936]
[1726565744274,0.43297,2309.7,2309.6,0.85348]
[1726565744467,0.43297,2309.7,2309.6,0.85349]
[1726565745869,0.43297,2309.8,2309.7,0.43297]
[1726565746468,0.43297,2309.7,2309.6,0.85348]
[1726565748175,0.43297,2309.7,2309.6,0.85349]
[1726565748578,0.83257,2309.7,2309.6,0.85349]
[1726565749475,0.83257,2309.7,2309.6,0.4205]
[1726565750179,0.83257,2309.7,2309.6,0.85349]
[1726565753280,0.43297,2309.7,2309.6,0.85349]
[1726565754577,0.43301,2309.5,2309.4,0.4138]
[1726565754989,0.4183,2309.6,2309.5,0.43301]
[1726565755187,0.43298,2309.7,2309.6,0.43299]
[1726565757087,0.433,2309.6,2309.5,0.43301]
[1726565757287,0.433,2309.6,2309.5,0.433]
[1726565758190,1.68299,2309.7,2309.6,0.43299]
[1726565758486,0.43299,2309.6,2309.5,0.433]
[1726565758688,1.68299,2309.7,2309.5,0.43301]
[1726565758888,1.68299,2309.7,2309.4,0.4138]
[1726565759075,1.68299,2309.7,2309.6,0.43299]
[1726565761485,0.433,2309.6,2309.5,0.433]
[1726565761790,1.68299,2309.7,2309.6,0.43299]
[1726565762690,0.433,2309.6,2309.5,0.433]
[1726565762890,1.68299,2309.7,2309.6,0.43299]
[1726565764992,0.433,2309.6,2309.5,0.433]
[1726565769897,0.8285,2309.6,2309.5,0.433]
[1726565770197,1.51554,2309.5,2309.3,1.13741605]
[1726565770403,0.43305,2309.3,2309.2,1.57047605]
[1726565770702,0.43305,2309.3,2309.1,1.13741605]
[1726565770909,0.43305,2309.3,2309.1,1.57050605]
[1726565770910,0.4166,2309.2,2309.1,1.57050605]
[1726565771098,0.4166,2309.2,2309.1,3.27422638]
[1726565771424,0.4166,2309.2,2309.1,1.57050605]
[1726565771905,0.43306,2309.3,2309.2,0.43307]
[1726565773910,0.82744,2309.4,2309.3,0.43305]
[1726565774906,0.84963,2309.5,2309.4,0.43303]
[1726565775208,0.84963,2309.5,2309.3,0.43303]
[1726565775209,0.43304,2309.4,2309.3,0.43303]
[1726565780318,0.43304,2309.4,2309.2,0.43305]
[1726565780814,0.4125,2309.3,2309.2,0.43305]
[1726565784315,0.8266,2309.5,2309.4,0.43303]
[1726565784711,0.4166,2309.5,2309.4,0.43303]
[1726565784935,3.70209825,2309.8,2309.7,0.43297]
[1726565785123,4.09758825,2309.8,2309.7,0.43297]
[1726565785419,3.66463825,2309.8,2309.7,0.43297]
[1726565785723,0.4329,2310.2,2309.7,5.5796]
[1726565786033,0.82839,2310.2,2310.0,0.43291]
[1726565786415,0.82838,2310.2,2310.0,0.4329]
[1726565786825,0.82838,2310.2,2309.9,0.8041]
[1726565786826,0.82838,2310.2,2309.9,1.23702]
[1726565788233,2.07838,2310.2,2309.9,1.23702]
[1726565789935,0.3955,2310.2,2309.9,1.23702]
[1726565790132,2.07839,2310.2,2309.9,1.23702]
[1726565790334,5.28619,2310.2,2309.9,1.23702]
[1726565792232,4.8533,2310.2,2309.9,1.23704]
[1726565792437,5.28619,2310.2,2309.9,1.23704]
[1726565794133,5.28619,2310.2,2309.9,0.8041]
[1726565794438,5.28619,2310.2,2310.0,0.43292]
[1726565794738,5.28619,2310.2,2310.1,0.4329]
[1726565794739,3.2078,2310.2,2310.1,0.4329]
[1726565796137,1.6722,2310.5,2310.4,0.43284]
[1726565796138,0.4222,2310.5,2310.4,0.43284]
[1726565796842,0.4222,2310.5,2310.4,1.21274]
[1726565797140,0.4328,2310.7,2310.4,0.7799]
[1726565797349,0.8448,2310.7,2310.5,0.43281]
[1726565797543,0.8448,2310.7,2310.6,0.4328]
[1726565798139,0.4328,2310.6,2310.5,0.43281]
[1726565798436,0.8448,2310.7,2310.5,0.43281]
[1726565798640,0.8448,2310.7,2310.6,0.4328]
[1726565798935,0.8448,2310.7,2310.5,1.25]
[1726565798936,0.412,2310.7,2310.5,1.25]
[1726565799140,3.64058,2310.8,2310.6,0.43279]
[1726565799537,1.61736,2310.9,2310.7,0.43279]
[1726565799936,1.1846,2310.9,2310.5,1.25]
[1726565800343,1.61736,2310.9,2310.7,0.43278]
[1726565800841,1.1846,2310.9,2310.7,0.43278]
[1726565801141,1.61735,2310.9,2310.7,0.43278]
[1726565801343,0.7966,2310.9,2310.8,0.43277]
[1726565802041,0.412,2310.9,2310.8,0.43277]
[1726565802848,0.84475,2310.9,2310.8,0.43277]
[1726565803145,0.412,2310.9,2310.6,0.43279]
[1726565803337,1.25,2310.7,2310.6,0.43279]
[1726565803842,1.6368,2310.7,2310.6,0.43279]
[1726565804935,0.3868,2310.7,2310.6,0.43279]
[1726565805334,2.09476,2310.9,2310.7,0.43278]
[1726565805541,0.84476,2310.9,2310.7,0.43278]
[1726565805739,0.412,2310.9,2310.8,1.68277]
[1726565806047,4.03191,2311.1,2310.8,1.25]
[1726565806243,0.43273,2311.0,2310.9,0.3913]
[1726565806436,4.0159,2311.1,2310.9,0.82404]
[1726565806650,4.44863,2311.1,2310.9,0.82404]
[1726565806838,0.43273,2311.0,2310.9,0.3913]
[1726565807141,4.44863,2311.1,2310.9,0.43274]
[1726565807342,0.43274,2311.0,2310.8,0.43275]
[1726565807543,0.43274,2311.0,2310.7,0.7957]
[1726565807544,1.68274,2311.0,2310.9,0.43275]
[1726565808330,1.25,2311.0,2310.9,0.43275]
[1726565809342,1.68273,2311.0,2310.9,0.43275]
[1726565809545,1.68273,2311.0,2310.8,0.43275]
[1726565809944,1.68273,2311.0,2310.9,0.43275]
[1726565811239,0.43276,2310.9,2310.6,4.4578]
[1726565811443,1.6542,2310.8,2310.7,0.43277]
[1726565811639,2.08697,2310.8,2310.7,0.43277]
[1726565813145,0.83697,2310.8,2310.7,0.43277]
[1726565814638,0.4042,2310.8,2310.7,0.43277]
[1726565814944,0.4207,2311.0,2310.9,0.43275]
[1726565815541,0.85344,2311.0,2310.8,0.4194]
[1726565816348,0.43275,2310.9,2310.8,0.85216]
[1726565816548,0.43275,2310.9,2310.8,0.43276]
[1726565820352,0.43277,2310.9,2310.7,0.43277]
[1726565820547,0.4141,2310.8,2310.7,0.43277]
[1726565823252,0.4141,2310.8,2310.7,0.83497]
[1726565824345,0.84687,2310.8,2310.7,0.83497]
[1726565824948,0.43279,2310.7,2310.6,0.4194]
[1726565825246,0.43279,2310.7,2310.6,0.4328]
[1726565825247,0.856,2310.7,2310.6,0.4328]
[1726565826445,0.856,2310.7,2310.5,0.4044]
[1726565827050,0.85599,2310.7,2310.5,0.83721]
[1726565827246,0.4232,2310.7,2310.6,0.4328]
[1726565827654,0.85599,2310.7,2310.6,0.4328]
[1726565827847,0.85599,2310.7,2310.5,0.83721]
[1726565828049,0.4232,2310.7,2310.6,0.4328]
[1726565828255,0.4141,2310.8,2310.7,0.43279]
[1726565828953,0.4141,2310.8,2310.7,0.81549]
[1726565830261,3.64053,2311.0,2310.9,0.43275]
[1726565830455,3.64053,2311.0,2310.9,4.3272]
[1726565830656,3.64053,2311.0,2310.8,0.43275]
[1726565830657,0.43275,2310.9,2310.8,0.43275]
[1726565830851,0.3924,2310.9,2310.8,0.43277]
[1726565832859,0.82515,2310.9,2310.8,0.43277]
[1726565833059,0.3924,2310.9,2310.8,0.43277]
[1726565833262,0.8113,2310.9,2310.8,0.43277]
[1726565833458,1.66026,2310.9,2310.7,0.43278]
[1726565833661,1.66026,2310.9,2310.8,0.43277]
[1726565834861,1.66026,2310.9,2310.7,0.43277]
[1726565835057,1.66026,2310.9,2310.8,0.43277]
[1726565835861,1.66026,2310.9,2310.6,0.3892]
[1726565836155,1.66026,2310.9,2310.8,0.43277]
[1726565836865,0.8086,2310.9,2310.8,0.43277]
[1726565837071,1.24135,2310.9,2310.8,0.43277]
[1726565838067,0.8086,2310.9,2310.8,0.43277]
[1726565838466,0.82515,2310.9,2310.8,0.43277]
[1726565839667,0.3924,2310.9,2310.8,0.43277]
[1726565840560,0.82515,2310.9,2310.8,0.43277]
[1726565840764,0.3924,2310.9,2310.8,0.43277]
[1726565840969,3.64054,2311.0,2310.9,0.43275]
[1726565841264,3.2078,2311.0,2310.6,1.47122]
[1726565841570,3.64055,2311.0,2310.9,0.43275]
[1726565842157,3.2078,2311.0,2310.9,0.43275]
[1726565842570,3.2078,2311.0,2310.9,1.64345]
[1726565843772,3.2078,2311.0,2310.9,3.97533]
[1726565845869,3.2078,2311.0,2310.9,8.30253]
[1726565848767,3.2078,2311.0,2310.9,9.38441]
[1726565848977,0.92929,2311.3,2311.1,0.4327]
[1726565848978,0.43272,2311.2,2311.1,0.4327]
[1726565849273,3.64052,2311.2,2311.1,1.6827]
[1726565851775,0.43272,2311.2,2311.1,1.6827]
[1726565852078,0.43272,2311.2,2311.1,0.43271]
[1726565852281,1.68272,2311.2,2311.1,0.43271]
[1726565852886,1.68272,2311.2,2311.0,0.43271]
[1726565852887,0.43271,2311.1,2311.0,0.43271]
[1726565856181,0.43271,2311.1,2310.7,1.22748]
[1726565856182,1.08183,2311.0,2310.7,1.22748]
[1726565856376,0.7781,2310.9,2310.7,0.7947]
[1726565856577,0.7781,2310.9,2310.8,0.43277]
[1726565858480,0.7781,2310.9,2310.7,0.43277]
[1726565858481,0.43275,2310.9,2310.7,0.43277]
[1726565858780,1.24495,2310.9,2310.8,0.43277]
[1726565859376,1.24495,2310.9,2310.7,0.43277]
[1726565859604,1.24495,2310.9,2310.8,0.43277]
[1726565860480,1.24495,2310.9,2310.7,0.43277]
[1726565861779,1.24496,2310.9,2310.7,0.43277]
[1726565862082,1.24496,2310.9,2310.8,0.43277]
[1726565862583,3.6072,2311.0,2310.9,0.43275]
[1726565862888,0.3994,2311.0,2310.9,1.68275]
[1726565863081,0.3994,2311.0,2310.9,0.43275]
[1726565863580,0.3994,2311.0,2310.8,1.25]
[1726565863783,0.3994,2311.0,2310.9,0.43275]
[1726565864383,0.83213,2311.0,2310.9,0.43275]
[1726565865976,4.03994,2311.0,2310.9,0.43275]
[1726565867377,0.3994,2311.0,2310.7,1.25]
[1726565867577,0.8297,2310.9,2310.8,0.43277]
[1726565869592,1.26245,2310.9,2310.8,0.43277]
[1726565869887,0.8297,2310.9,2310.8,0.43277]
[1726565871007,1.26245,2310.9,2310.8,0.43277]
[1726565871388,0.8297,2310.9,2310.8,0.43277]
[1726565872188,1.26245,2310.9,2310.8,0.43277]
[1726565872392,0.43278,2310.8,2310.7,0.43277]
[1726565872587,0.43279,2310.7,2310.6,1.65138]
[1726565872889,0.3855,2310.7,2310.6,1.65138]
[1726565875094,0.81829,2310.7,2310.6,0.43278]
[1726565884796,0.43279,2310.7,2310.6,0.43278]
[1726565884988,0.81676,2310.9,2310.8,0.43277]
[1726565885191,0.43275,2311.0,2310.8,1.25]
[1726565885419,0.43275,2311.0,2310.9,0.43273]
[1726565888514,1.1984,2311.1,2311.0,0.43273]
[1726565888515,1.63112,2311.1,2311.0,0.43273]
[1726565891289,0.43272,2311.1,2311.0,0.43273]
[1726565891702,0.43272,2311.1,2311.0,0.82263]
[1726565893203,3.2078,2311.2,2311.0,0.3899]
[1726565893407,3.2078,2311.2,2311.1,1.68271]
[1726565893599,3.2078,2311.2,2311.1,2.48231]
[1726565894732,3.64049,2311.2,2311.1,2.48231]
[1726565898098,0.43269,2311.2,2311.1,2.48231]
[1726565899209,0.81609,2311.3,2311.2,0.43269]
[1726565899502,0.81609,2311.3,2311.1,2.0496]
[1726565899503,0.3834,2311.3,2311.1,2.4823]
[1726565899712,0.81609,2311.3,2311.1,2.4823]
[1726565900014,0.3834,2311.3,2311.1,2.4823]
[1726565900215,0.3834,2311.3,2311.2,1.68269]
[1726565900505,0.3834,2311.3,2311.2,4.89049]
[1726565900808,0.3834,2311.3,2311.2,1.68269]
[1726565901003,0.3834,2311.3,2311.2,4.89049]
[1726565901199,0.3834,2311.3,2311.2,1.68269]
[1726565901404,0.3834,2311.3,2311.1,0.43271]
[1726565901405,0.43271,2311.2,2311.1,0.43271]
[1726565902109,0.43271,2311.2,2311.1,1.68271]
[1726565903426,0.81609,2311.3,2311.1,1.68271]
[1726565905111,0.81609,2311.3,2311.2,0.43269]
[1726565905812,0.81608,2311.3,2311.2,0.43269]
[1726565906124,0.81608,2311.3,2311.1,1.6827]
[1726565906306,0.43269,2311.2,2311.1,1.6827]
[1726565906510,0.81609,2311.3,2311.2,0.43269]
[1726565906909,0.81609,2311.3,2311.1,1.6827]
[1726565907713,0.81609,2311.3,2311.2,0.43269]
[1726565914925,0.3834,2311.3,2311.2,0.43269]
[1726565916430,0.81607,2311.3,2311.2,0.43269]
[1726565916611,0.3834,2311.3,2311.2,0.43269]
[1726565928228,0.81607,2311.3,2311.2,0.43269]
[1726565928429,0.43269,2311.2,2311.1,0.8205]
[1726565928621,0.43271,2311.1,2311.0,0.3899]
[1726565928822,0.43271,2311.1,2311.0,0.82262]
[1726565929029,4.6729,2311.3,2311.0,0.82262]
[1726565929222,0.43271,2311.1,2311.0,0.82262]
[1726565929431,0.43271,2311.2,2311.1,0.43271]
[1726565930330,0.43271,2311.1,2311.0,0.82261]
[1726565930733,4.6729,2311.3,2311.0,0.82261]
[1726565930734,0.43271,2311.2,2311.1,0.43271]
[1726565931532,4.6729,2311.3,2311.0,0.3899]
[1726565931728,4.6729,2311.3,2311.1,0.43271]
[1726565931729,0.43271,2311.2,2311.1,0.43271]
[1726565934034,4.02389,2311.3,2311.2,0.43269]
[1726565934833,0.7786,2311.5,2311.2,1.25]
[1726565935031,1.60334,2311.5,2311.4,0.43265]
[1726565935235,1.1707,2311.5,2311.4,0.43265]
[1726565935439,1.1707,2311.5,2311.4,0.83125]
[1726565936833,1.60334,2311.5,2311.4,0.83125]
[1726565937032,3.3088,2311.9,2311.6,0.4326]
[1726565937340,3.2078,2311.9,2311.8,1.68258]
[1726565937535,3.2078,2311.9,2311.7,1.2297]
[1726565937536,0.43258,2311.8,2311.7,1.2297]
[1726565937724,4.4578,2311.9,2311.7,1.6623]
[1726565937725,3.64037,2311.9,2311.7,1.6623]
[1726565937923,3.2078,2311.9,2311.7,1.6623]
[1726565938161,3.2078,2311.9,2311.7,2.4797]
[1726565938425,3.2078,2311.9,2311.8,4.75818]
[1726565939139,6.17733825,2312.4,2312.2,0.43251]
[1726565939439,0.82385,2312.5,2312.3,2.09798]
[1726565939829,0.3914,2312.5,2312.3,2.09798]
[1726565940126,0.82385,2312.5,2312.3,1.6655]
[1726565940328,0.82386,2312.5,2312.3,1.6655]
[1726565940526,0.82386,2312.5,2312.2,2.1]
[1726565940732,4.89028,2312.4,2312.1,1.25]
[1726565940931,0.83649,2312.3,2312.1,1.25]
[1726565941132,0.4123,2312.2,2312.1,1.25]
[1726565941739,0.4123,2312.2,2312.1,1.68252]
[1726565942037,0.4123,2312.2,2312.1,1.25]
[1726565942539,0.43253,2312.1,2311.9,1.25]
[1726565942727,4.4578,2312.1,2311.7,0.3931]
[1726565943034,0.43255,2312.0,2311.7,0.82569]
[1726565943240,1.08136,2312.0,2311.7,0.3931]
[1726565943428,0.404,2311.9,2311.4,5.2783]
[1726565943633,1.26669,2311.8,2311.5,0.43263]
[1726565943837,0.8341,2311.8,2311.6,1.68262]
[1726565944141,1.26668,2311.8,2311.5,0.43263]
[1726565944536,1.26668,2311.8,2311.6,0.43262]
[1726565945434,0.8341,2311.8,2311.6,0.43262]
[1726565945630,1.26668,2311.8,2311.6,0.43262]
[1726565945837,0.8341,2311.8,2311.6,0.43262]
[1726565946137,1.26668,2311.8,2311.6,0.43262]
[1726565946734,0.8341,2311.8,2311.7,0.4326]
[1726565946942,0.4115,2311.8,2311.7,0.4326]
[1726565947143,0.4115,2311.8,2311.7,0.8222]
[1726565947453,0.81515,2312.0,2311.8,0.43257]
[1726565947642,1.23215,2312.0,2311.8,0.82677]
[1726565948036,0.43256,2311.9,2311.8,0.3942]
[1726565948537,1.23216,2312.0,2311.8,0.3942]
[1726565949041,0.7996,2312.0,2311.7,0.3896]
[1726565949245,0.7996,2312.0,2311.7,0.82219]
[1726565949246,0.43257,2311.9,2311.7,0.82219]
[1726565951447,0.43258,2311.8,2311.7,0.3896]
[1726565951638,0.43261,2311.7,2311.5,0.82683]
[1726565951839,0.83511,2311.7,2311.5,0.82683]
[1726565952138,0.43262,2311.6,2311.4,0.43264]
[1726565952338,0.4226,2311.6,2311.5,0.43264]
[1726565953037,0.4226,2311.6,2311.3,3.484]
[1726565953340,0.4226,2311.6,2311.5,0.43264]
[1726565953743,0.85522,2311.6,2311.4,0.43264]
[1726565953943,0.4226,2311.6,2311.5,0.43264]
[1726565955844,0.4226,2311.6,2311.3,4.6124895]
[1726565955845,0.85522,2311.6,2311.4,0.43264]
[1726565956046,0.85522,2311.6,2311.5,0.43264]
[1726565956342,0.4226,2311.6,2311.5,0.43264]
[1726565956542,0.85522,2311.6,2311.4,0.43265]
[1726565956845,0.85523,2311.6,2311.4,0.43265]
[1726565957344,0.43264,2311.5,2311.3,1.21666]
[1726565957543,0.43266,2311.4,2311.2,0.43268]
[1726565957750,0.409,2311.4,2311.3,0.43267]
[1726565957941,0.84165,2311.4,2311.1,3.1131]
[1726565958239,0.409,2311.4,2311.3,0.43267]
[1726565959743,0.85523,2311.6,2311.4,0.43264]
[1726565959939,0.4941,2311.7,2311.5,3.4982]
[1726565959940,0.835,2311.7,2311.5,3.4982]
[1726565960139,0.4326,2311.7,2311.5,3.4982]
[1726565960339,0.4326,2311.7,2311.6,0.43262]
[1726565960948,0.4326,2311.7,2311.5,3.93082]
[1726565961251,0.4326,2311.7,2311.6,0.43262]
[1726565961449,0.4326,2311.7,2311.5,3.93082]
[1726565961653,0.43262,2311.6,2311.5,3.93082]
[1726565962644,0.43262,2311.6,2311.5,1.23084]
[1726565963455,0.4326,2311.7,2311.5,1.23084]
[1726565965046,0.4326,2311.7,2311.6,0.43262]
[1726565965254,0.4326,2311.7,2311.5,1.23082]
[1726565965445,0.4326,2311.7,2311.6,0.43261]
[1726565966252,0.83499,2311.8,2311.6,0.43261]
[1726565966455,0.4326,2311.7,2311.6,0.43261]
[1726565966754,0.4024,2311.8,2311.7,0.4326]
[1726565967154,0.83498,2311.8,2311.7,0.4326]
[1726565967547,0.83498,2311.8,2311.6,0.4326]
[1726565967956,0.83498,2311.8,2311.7,0.4326]
[1726565969058,0.83498,2311.8,2311.6,0.4326]
[1726565969251,0.83499,2311.8,2311.6,0.4326]
[1726565969456,0.4326,2311.7,2311.6,0.4326]
[1726565969657,0.4024,2311.8,2311.6,0.4326]
[1726565969658,0.835,2311.8,2311.6,0.4326]
[1726565970453,0.43261,2311.7,2311.5,0.7982]
[1726565970762,0.4024,2311.8,2311.6,0.43261]
[1726565970763,2.08499,2311.8,2311.6,0.43261]
[1726565974757,0.4326,2311.7,2311.6,0.43261]
[1726565974955,2.085,2311.8,2311.6,0.43261]
[1726565975157,0.4326,2311.7,2311.6,0.43261]
[1726565978154,0.83499,2311.8,2311.6,0.43261]
[1726565979169,0.4326,2311.7,2311.6,0.43261]
[1726565979668,0.83499,2311.8,2311.7,0.4326]
[1726565979870,0.83499,2311.8,2311.6,0.4326]
[1726565980071,0.43257,2311.9,2311.7,0.4326]
[1726565980264,0.43257,2311.9,2311.5,3.0082795]
[1726565980265,4.4374,2312.0,2311.8,0.8174]
[1726565980571,4.4374,2312.0,2311.9,0.43256]
[1726565980572,3.6312,2312.0,2311.9,0.43256]
[1726565980762,3.6312,2312.0,2311.9,0.85526]
[1726565981158,3.2078,2312.0,2311.9,0.85526]
[1726565981359,1.08127,2312.2,2311.9,0.85526]
[1726565981360,1.50467,2312.2,2311.9,0.85526]
[1726565981566,0.43254,2312.0,2311.9,0.4227]
[1726565982365,0.43254,2312.0,2311.8,1.24997]
[1726565982664,0.4039,2311.9,2311.8,1.24997]
[1726565987271,2.08646,2311.9,2311.7,3.64038]
[1726565987467,2.0665,2311.8,2311.6,0.43262]
[1726565987674,0.4326,2311.7,2311.5,0.43262]
[1726565988066,0.3879,2311.6,2311.5,0.43262]
[1726565988471,0.82052,2311.6,2311.4,1.62124]
[1726565988667,0.3879,2311.6,2311.5,0.43264]
[1726565989363,0.3879,2311.6,2311.4,1.1886]
[1726565989364,1.24909,2311.8,2311.6,0.43261]
[1726565989564,0.4099,2311.7,2311.6,0.43261]
[1726565990371,0.4099,2311.7,2311.4,5.6464]
[1726565990581,0.8425,2311.7,2311.6,0.43262]
[1726565990882,0.4099,2311.7,2311.4,1.1886]
[1726565991183,0.84252,2311.7,2311.5,0.43264]
[1726565992676,0.4099,2311.7,2311.6,0.43262]
[1726565993681,0.8425,2311.7,2311.6,0.43262]
[1726565993877,0.8425,2311.7,2311.5,1.5611095]
[1726565994388,0.8425,2311.7,2311.6,0.43262]
[1726565995179,0.8425,2311.7,2311.5,1.5611095]